bitfinex-derivatives/quotes_ETHF0:USTF0_20250919
["timestamp","ask_amount","ask_price","bid_price","bid_amount"]
[1758242901372,1.00299815,4608.6,4608.5,2.5951]
[1758242901569,2.59584668,4608.6,4608.5,2.1715]
[1758242901764,1.5570476,4608.6,4608.5,2.1715]
[1758242902473,0.1194,4608.5,4608.3,0.00325418]
[1758242902672,2.59584668,4608.4,4608.3,0.51745418]
[1758242903370,2.59584668,4608.4,4608.3,0.20685418]
[1758242903967,0.8367476,4608.4,4608.3,0.93585418]
[1758242904172,0.28269815,4608.4,4608.3,0.93585418]
[1758242904473,0.7203,4609.1,4609.0,0.7126]
[1758242904670,1.55755534,4609.1,4609.0,0.7126]
[1758242906069,1.35115534,4609.1,4609.0,0.8384]
[1758242906379,1.55755534,4609.1,4609.0,0.7126]
[1758242907178,1.55755534,4609.1,4609.0,0.9326]
[1758242907378,1.55755534,4609.1,4609.0,0.4236]
[1758242907570,1.55755534,4609.1,4609.0,0.2036]
[1758242907967,1.55755534,4609.1,4608.8,0.22]
[1758242908170,1.73809908,4608.9,4608.8,0.22]
[1758242908470,0.6993,4608.8,4608.7,0.4157]
[1758242908666,1.53655534,4608.8,4608.7,0.4157]
[1758242909067,0.2977,4608.7,4608.5,3.2078]
[1758242909268,1.53655534,4608.6,4608.5,3.4035]
[1758242909474,1.53655534,4608.6,4608.5,3.6235]
[1758242909681,1.53655534,4608.6,4608.5,3.9214]
[1758242910369,1.53655534,4608.6,4608.5,4.1131]
[1758242911373,1.53655534,4608.6,4608.5,3.8931]
[1758242911579,0.98221762,4608.6,4608.5,4.1131]
[1758242912274,0.98221762,4608.6,4608.5,4.229]
[1758242912481,0.47691762,4608.6,4608.5,4.229]
[1758242912981,0.77461762,4608.6,4608.5,4.229]
[1758242913979,0.98221762,4608.6,4608.5,4.1131]
[1758242914177,0.98221762,4608.6,4608.5,3.8931]
[1758242914383,1.53782345,4608.6,4608.5,4.1131]
[1758242914772,0.98221762,4608.6,4608.5,4.1131]
[1758242915178,1.53791766,4608.6,4608.5,4.1131]
[1758242915678,1.53791766,4608.6,4608.5,3.8931]
[1758242915878,1.53791766,4608.6,4608.5,4.1131]
[1758242917085,1.25500004,4608.6,4608.5,4.1131]
[1758242917291,1.25500004,4608.6,4608.5,3.8931]
[1758242917589,1.25500004,4608.6,4608.5,4.1131]
[1758242918988,0.74970004,4608.6,4608.5,4.229]
[1758242919182,0.55570004,4608.6,4608.5,4.229]
[1758242919383,1.33649908,4608.9,4608.5,4.009]
[1758242919584,1.03337061,4608.8,4608.7,0.3874]
[1758242919788,1.04739147,4608.8,4608.7,0.9053]
[1758242920188,1.33107296,4608.8,4608.7,0.9053]
[1758242921492,1.33107296,4608.8,4608.7,0.6853]
[1758242921696,1.33107296,4608.8,4608.7,0.9043]
[1758242921988,1.53867296,4608.8,4608.7,0.9043]
[1758242922989,1.53867296,4608.8,4608.7,0.6853]
[1758242923194,1.53867296,4608.8,4608.7,0.4147]
[1758242923990,1.53867296,4608.8,4608.7,0.9043]
[1758242924796,1.53867296,4608.8,4608.7,0.6853]
[1758242924996,1.53867296,4608.8,4608.7,0.9043]
[1758242926198,0.819,4608.5,4608.4,2.1715]
[1758242926497,1.65837296,4608.5,4608.4,2.1715]
[1758242926898,1.65837296,4608.5,4608.3,0.00325418]
[1758242927097,1.53867296,4608.4,4608.3,0.00325418]
[1758242928199,1.54349771,4608.4,4608.3,0.00325418]
[1758242928498,5.54349771,4608.4,4608.3,0.00325418]
[1758242928888,1.54344171,4608.4,4608.3,0.00325418]
[1758242930495,5.54344171,4608.4,4608.3,0.00325418]
[1758242930702,5.76244171,4608.4,4608.3,0.00325418]
[1758242931101,46.56244171,4608.4,4608.3,0.00325418]
[1758242931998,1.85779908,4608.0,4607.9,0.0217]
[1758242932200,6.12874079,4608.0,4607.9,0.0217]
[1758242932698,6.12874079,4608.0,4606.9,0.5169]
[1758242932904,0.4917,4607.0,4606.9,0.9043]
[1758242933198,0.98292549,4607.0,4606.9,0.6853]
[1758242933404,1.10262549,4607.0,4606.9,0.9043]
[1758242933598,1.10262549,4607.0,4606.9,0.6064]
[1758242933803,1.10262549,4607.0,4606.9,0.3874]
[1758242934192,1.10262549,4607.0,4606.9,0.1957]
[1758242934692,1.10262549,4607.0,4606.9,0.4936]
[1758242934895,2.14142457,4607.0,4606.9,0.7126]
[1758242935101,2.14142457,4607.0,4606.9,0.4936]
[1758242935299,2.14142457,4607.0,4606.9,0.219]
[1758242935500,1.10262549,4607.0,4606.9,0.219]
[1758242935894,1.10262549,4607.0,4606.8,2.1715]
[1758242936100,1.10262549,4607.0,4606.8,2.3672]
[1758242936101,2.01922457,4606.9,4606.8,2.3672]
[1758242936604,2.01922457,4606.9,4606.8,2.5862]
[1758242937101,2.01922457,4606.9,4606.8,2.3672]
[1758242937307,2.01922457,4606.9,4606.8,2.1715]
[1758242937606,2.57808439,4606.9,4606.8,2.1715]
[1758242937800,2.57808062,4606.9,4606.6,0.0217]
[1758242938000,0.7005,4606.7,4606.6,0.0217]
[1758242938304,0.98412549,4606.7,4606.6,0.0217]
[1758242938493,0.98412549,4606.7,4606.6,0.2181]
[1758242938698,0.98412549,4606.7,4606.6,0.7209]
[1758242939103,0.98412549,4606.7,4606.6,0.6992]
[1758242940801,0.28362549,4606.7,4606.6,4.6992]
[1758242941100,0.7005,4607.6,4607.0,0.124]
[1758242941406,0.7005,4607.2,4607.1,0.613]
[1758242941800,0.7005,4607.2,4607.1,0.9182]
[1758242944001,0.5023,4607.2,4607.1,0.9182]
[1758242946104,0.5023,4607.2,4607.1,0.6992]
[1758242946311,0.5023,4607.2,4607.1,0.9182]
[1758242947103,0.5023,4607.9,4607.8,0.6992]
[1758242947405,0.2047,4607.9,4607.8,0.6992]
[1758242947807,3.2078,4608.0,4607.8,0.6992]
[1758242948006,3.5054,4608.5,4608.1,0.1976]
[1758242948312,3.5054,4608.5,4608.0,0.124]
[1758242948313,4.0314,4608.5,4608.4,0.1964]
[1758242948610,4.59227441,4608.5,4608.4,0.6992]
[1758242949406,5.63107349,4608.5,4608.4,0.6992]
[1758242950012,5.63107349,4608.5,4608.4,0.394]
[1758242950509,5.63107349,4608.5,4608.4,0.1964]
[1758242952913,5.90971559,4608.5,4608.4,0.1964]
[1758242953706,4.87091651,4608.5,4608.4,0.1964]
[1758242953915,5.75909811,4608.5,4608.4,0.1964]
[1758242955207,5.63599811,4608.5,4608.4,0.6992]
[1758242955405,5.75909811,4608.5,4608.4,0.5016]
[1758242955712,5.75909811,4608.5,4608.1,0.5242]
[1758242955913,1.5886816,4608.2,4608.1,0.9182]
[1758242956115,2.42819811,4608.2,4608.1,0.6992]
[1758242956517,2.42819811,4608.2,4608.1,0.9182]
[1758242957014,2.42819811,4608.2,4608.1,0.6992]
[1758242957214,2.42819811,4608.2,4608.1,0.9182]
[1758242958116,2.42819811,4608.2,4608.1,0.6992]
[1758242958312,2.42819811,4608.2,4608.1,0.9182]
[1758242958512,0.83951651,4608.2,4608.1,1.30861]
[1758242959322,0.83975996,4608.2,4608.1,1.30861]
[1758242959523,0.27888555,4608.2,4608.1,1.30861]
[1758242960809,1e-08,4608.2,4608.1,5.52562]
[1758242961116,4.5982816,4609.2,4609.1,0.6992]
[1758242961306,5.35789089,4609.2,4609.1,0.9182]
[1758242961513,2.15009089,4609.2,4609.1,0.9182]
[1758242964216,1.5886816,4609.2,4609.1,0.9182]
[1758242966012,1.5886816,4609.2,4609.1,0.394]
[1758242966211,2.1495745,4609.2,4609.1,0.1964]
[1758242966812,2.1495745,4609.2,4608.8,0.3052]
[1758242967013,1.7117816,4609.0,4608.9,0.4154]
[1758242967816,1.7117816,4609.0,4608.9,0.9182]
[1758242968017,0.7005,4609.0,4608.9,1.8063816]
[1758242968219,0.5023,4609.0,4608.9,1.8063816]
[1758242968515,0.2047,4609.0,4608.9,5.0141816]
[1758242968816,0.8881816,4609.2,4609.1,0.7167]
[1758242968817,1.3729816,4609.2,4609.1,0.7167]
[1758242969116,0.8881816,4609.4,4609.3,0.2003]
[1758242969419,1.93414133,4609.4,4609.3,0.7167]
[1758242969612,2.13984133,4609.4,4609.3,0.7167]
[1758242970519,2.13984133,4609.4,4609.3,0.2003]
[1758242970815,2.13984133,4609.4,4608.9,4.6264816]
[1758242971016,1.5786816,4609.2,4609.1,0.5118]
[1758242971911,0.6905,4609.2,4609.1,0.2003]
[1758242972109,2.1392833,4609.2,4609.1,0.4193]
[1758242972616,2.1392833,4609.2,4609.1,0.7308]
[1758242972818,2.4107139,4609.2,4609.1,0.7308]
[1758242973413,0.1231,4610.0,4609.1,1.01453]
[1758242973619,1.5225962,4609.9,4609.8,1.0884816]
[1758242973818,1.5225962,4609.9,4609.8,0.2003]
[1758242974023,1.5225962,4609.9,4609.7,0.219]
[1758242974319,0.6905,4609.9,4609.8,1.6048816]
[1758242975218,0.6905,4609.9,4609.8,0.7167]
[1758242979522,0.2905,4610.2,4609.8,0.7167]
[1758242979721,0.2905,4610.2,4609.7,1.1071816]
[1758242979722,0.4848,4610.2,4610.1,0.7167]
[1758242979922,2.13904705,4610.2,4610.1,0.7167]
[1758242980321,1.25086545,4610.2,4610.1,0.7167]
[1758242980626,2.13904705,4610.2,4610.1,0.7167]
[1758242981223,1.5786816,4610.2,4610.1,0.7167]
[1758242981722,2.13896102,4610.2,4610.1,0.7167]
[1758242981922,2.13896102,4610.2,4610.1,0.4052]
[1758242982226,2.13896102,4610.2,4609.9,0.8881816]
[1758242982428,0.814,4610.0,4609.9,1.0884816]
[1758242982622,1.7021816,4610.0,4609.9,0.2003]
[1758242982826,1.7021816,4610.0,4609.9,0.4193]
[1758242983426,0.814,4610.0,4609.9,1.8238816]
[1758242984222,0.6905,4610.0,4609.9,1.8238816]
[1758242984923,0.814,4610.0,4609.9,1.8238816]
[1758242985119,0.814,4610.0,4609.9,0.2003]
[1758242985423,0.6905,4609.3,4608.9,3.2294]
[1758242985732,1.5786816,4609.3,4609.0,0.219]
[1758242985921,2.40040686,4609.3,4609.0,0.219]
[1758242988024,1.5786816,4609.1,4609.0,0.219]
[1758242988233,2.40040686,4609.1,4609.0,0.219]
[1758242988428,0.814,4609.0,4608.9,3.2078]
[1758242988624,1.63572526,4609.0,4608.9,3.2078]
[1758242990224,1.63572526,4609.0,4608.9,3.4081]
[1758242993127,1.63572526,4609.0,4608.9,3.7196]
[1758242993729,0.82172526,4609.0,4608.9,4.1435]
[1758242994333,1.30652526,4609.0,4608.9,4.1435]
[1758242996833,1.50682526,4609.0,4608.9,4.1435]
[1758242997128,3.40878846,4609.0,4608.7,0.0216]
[1758242997332,1.5709816,4608.8,4608.7,0.0216]
[1758242997534,2.39270686,4608.8,4608.7,0.0216]
[1758242997732,2.39270686,4608.8,4608.7,0.2009]
[1758242999729,2.10500686,4608.8,4608.4,3.2078]
[1758242999930,0.3446,4609.0,4608.4,3.2078]
[1758242999931,1.5770816,4608.6,4608.5,0.4251]
[1758243000136,2.39880686,4608.6,4608.5,0.4251]
[1758243000436,1.31762526,4608.6,4608.5,1.8126816]
[1758243001028,0.26123216,4608.6,4608.5,1.9387816]
[1758243001233,0.26123216,4608.6,4608.5,2.3291716]
[1758243001430,0.219,4609.0,4608.6,0.2982]
[1758243001431,0.2946,4608.8,4608.6,0.2982]
[1758243001630,0.6889,4608.8,4608.7,1.5936816]
[1758243001822,0.1235,4609.5,4608.7,1.5936816]
[1758243001823,3.4091,4609.7,4609.6,0.7055]
[1758243002028,3.970193,4609.7,4609.6,1.5936816]
[1758243002331,4.457793,4609.7,4609.6,1.5936816]
[1758243002526,1.249993,4609.7,4609.6,1.5936816]
[1758243002723,0.6889,4609.7,4609.6,1.5936816]
[1758243003933,0.6889,4609.7,4609.6,1.2954816]
[1758243004336,0.6889,4609.7,4609.3,0.2982]
[1758243004337,0.6889,4609.7,4609.4,0.219]
[1758243004632,0.8087,4609.5,4609.4,0.4251]
[1758243005330,0.8087,4609.5,4609.4,0.2061]
[1758243005535,0.3943,4609.3,4609.2,0.219]
[1758243005728,0.6889,4609.3,4609.2,0.4251]
[1758243006325,0.6889,4609.3,4609.2,0.7055]
[1758243010436,1.25030382,4609.3,4609.2,0.7055]
[1758243013830,2.5471777,4609.3,4609.2,0.7055]
[1758243016438,0.3211,4609.0,4608.9,0.2061]
[1758243016639,2.6669777,4609.0,4608.9,0.2061]
[1758243017040,0.6889,4608.9,4608.8,2.1715]
[1758243017343,1.50840248,4608.9,4608.8,2.1715]
[1758243017842,0.3943,4608.6,4608.5,3.4139]
[1758243018033,1.50840248,4608.6,4608.5,3.4139]
[1758243018233,0.94699866,4608.6,4608.5,3.4139]
[1758243018538,0.94699866,4608.6,4608.5,3.7121]
[1758243018738,0.94699866,4608.6,4608.5,3.9133]
[1758243019340,1.50899778,4608.6,4608.5,0.7055]
[1758243020235,0.6889,4608.4,4608.3,2.1931]
[1758243020431,1.72799778,4608.4,4608.3,2.1931]
[1758243020940,1.72799778,4608.4,4608.3,0.0216]
[1758243021535,1.72799778,4608.4,4607.9,3.2078]
[1758243021735,0.8087,4608.0,4607.9,3.7121]
[1758243022033,1.06679866,4608.0,4607.9,3.7121]
[1758243023540,1.62826425,4608.0,4607.9,3.7121]
[1758243023936,1.62826425,4608.0,4607.9,0.5043]
[1758243024439,1.62826425,4608.0,4607.6,0.2982]
[1758243024636,0.3943,4607.7,4607.6,0.5043]
[1758243024940,1.72732957,4607.7,4607.6,0.5043]
[1758243025334,1.16599866,4607.7,4607.6,0.5043]
[1758243026430,1.16599866,4607.7,4607.6,0.7055]
[1758243028540,1.16599866,4607.7,4607.6,0.2061]
[1758243028745,0.1273,4607.5,4607.4,0.0217]
[1758243028940,1.82847388,4607.5,4607.4,0.2208]
[1758243029141,0.45589866,4607.5,4607.4,1.09438]
[1758243029448,3.2078,4608.1,4608.0,0.824]
[1758243029742,4.24406174,4608.1,4608.0,0.824]
[1758243029944,4.44186174,4608.1,4608.0,0.824]
[1758243030246,4.74736174,4608.1,4608.0,0.824]
[1758243030541,0.47581196,4608.1,4608.0,0.824]
[1758243031244,0.78131196,4608.1,4608.0,0.824]
[1758243031644,0.97911196,4608.1,4608.0,0.824]
[1758243033153,1.18561196,4608.1,4608.0,0.7039]
[1758243033862,1.7480799,4608.1,4608.0,0.7039]
[1758243034658,1.18561196,4608.1,4608.0,0.7039]
[1758243035364,1.74822828,4608.1,4608.0,0.7039]
[1758243040267,1.74839989,4608.1,4608.0,0.7039]
[1758243049667,0.81959989,4608.1,4608.0,0.824]
[1758243049865,0.2036671,4608.1,4608.0,5.43144]
[1758243050369,0.3055,4608.6,4608.0,5.12914]
[1758243050575,0.5033,4608.6,4608.5,1.74267522]
[1758243050777,0.74399878,4608.6,4608.5,1.74267522]
[1758243052174,0.5033,4608.6,4608.5,1.74267522]
[1758243060171,0.3055,4608.6,4608.5,1.85977522]
[1758243060476,0.6983,4609.1,4609.0,0.406]
[1758243060981,0.6983,4609.1,4609.0,0.7151]
[1758243061379,0.6983,4609.1,4608.9,1.03877522]
[1758243061575,4.24657522,4609.3,4608.6,0.5281]
[1758243061576,0.6983,4608.7,4608.6,0.7385]
[1758243061781,4.24657522,4609.3,4609.2,1.3564]
[1758243062080,5.04144172,4609.3,4609.2,1.8759]
[1758243063881,4.0026665,4609.3,4609.2,2.0715]
[1758243067079,3.76683897,4609.3,4609.2,2.0715]
[1758243067479,0.55903897,4609.3,4609.2,2.0715]
[1758243068376,0.55903897,4609.3,4609.2,3.11027522]
[1758243068576,1.03877522,4610.2,4610.1,0.3091]
[1758243068774,2.05209698,4610.2,4610.1,0.5195]
[1758243069084,2.26900698,4610.2,4610.1,0.5195]
[1758243069285,2.05000698,4610.2,4610.1,0.5195]
[1758243069487,0.79432176,4610.2,4610.1,0.7151]
[1758243069783,1.01332176,4610.2,4610.1,0.7151]
[1758243071085,0.77764292,4610.2,4610.1,0.7151]
[1758243071284,0.55864292,4610.2,4610.1,0.7151]
[1758243072489,0.79409534,4610.2,4610.1,0.7151]
[1758243073290,0.23545242,4610.2,4610.1,0.7151]
[1758243073885,0.23545242,4610.2,4610.1,1.60241914]
[1758243076879,0.23536973,4610.2,4610.1,1.29331914]
[1758243077082,0.23536973,4610.2,4610.1,1.60241914]
[1758243079584,0.23536973,4610.2,4610.1,1.29331914]
[1758243079785,0.23536973,4610.2,4610.1,1.60241914]
[1758243081484,0.23536973,4610.2,4610.1,0.7151]
[1758243081687,0.23536973,4610.2,4610.1,1.60241914]
[1758243081890,0.79358898,4610.2,4610.1,1.60241914]
[1758243082487,0.55821925,4610.2,4610.1,0.7151]
[1758243083089,0.55821925,4610.2,4610.1,1.60241914]
[1758243088087,0.79409523,4610.2,4610.1,1.60241914]
[1758243088791,0.55821925,4610.2,4610.1,1.60241914]
[1758243089287,0.55821925,4610.2,4610.1,1.99267914]
[1758243089788,0.55821925,4610.2,4610.1,1.60241914]
[1758243090698,0.55821925,4610.2,4610.1,1.99267914]
[1758243090891,0.55821925,4610.2,4610.1,2.21167914]
[1758243091093,0.55821925,4610.2,4610.1,1.82141914]
[1758243091891,0.219,4610.8,4610.7,0.6912]
[1758243092091,1.01322853,4610.8,4610.7,1.57851914]
[1758243094693,1.01322853,4610.8,4610.7,0.6912]
[1758243094694,1.90054767,4610.8,4610.7,0.6912]
[1758243094900,1.90054767,4610.8,4610.7,0.3019]
[1758243105102,5.10834767,4610.8,4610.7,0.3019]
[1758243105897,5.10834767,4610.8,4610.5,0.4219]
[1758243106102,0.88731914,4610.6,4610.5,0.12]
[1758243106404,2.56886681,4610.6,4610.0,0.1171]
[1758243106709,1.77463828,4610.1,4609.9,0.0216]
[1758243106899,1.01322853,4610.0,4609.9,0.0216]
[1758243107402,1.01322853,4610.0,4609.5,0.1171]
[1758243107602,1.01322853,4610.0,4609.5,0.419]
[1758243107603,4.09511914,4609.6,4609.5,0.419]
[1758243107802,5.10834767,4609.6,4609.5,0.419]
[1758243108005,5.10834767,4609.6,4609.5,0.6153]
[1758243111705,5.10834767,4609.6,4609.5,0.8083]
[1758243113408,4.22102853,4609.6,4609.5,0.8083]
[1758243113605,1.01322853,4609.6,4609.5,0.8083]
[1758243113806,0.219,4609.8,4609.5,0.5064]
[1758243114007,0.219,4609.8,4609.7,1.57851914]
[1758243114504,0.219,4610.3,4610.0,0.12]
[1758243114709,0.219,4610.3,4610.2,1.57851914]
[1758243115007,0.56224914,4610.3,4610.2,1.57851914]
[1758243115209,0.79823148,4610.3,4610.2,1.57851914]
[1758243119317,0.79823148,4610.3,4610.2,1.96876914]
[1758243119510,3.2078,4610.9,4610.6,0.2918]
[1758243119717,3.2078,4610.9,4610.8,0.5012]
[1758243120015,4.2248091,4610.9,4610.8,0.5012]
[1758243120815,5.11212824,4610.9,4610.8,0.5012]
[1758243121712,5.11212824,4610.9,4610.5,0.1182]
[1758243121916,0.88731914,4610.6,4610.5,0.41]
[1758243122220,1.90432824,4610.6,4610.5,0.41]
[1758243123714,1.90432824,4610.6,4610.5,0.6194]
[1758243123913,1.0170091,4610.6,4610.5,0.8226]
[1758243124516,0.7980091,4610.6,4610.5,1.70991914]
[1758243124716,3.2078,4611.4,4611.3,0.7044]
[1758243124915,4.22526695,4611.4,4611.3,1.59171914]
[1758243128618,4.00626695,4611.4,4611.3,1.59171914]
[1758243128820,4.22526695,4611.4,4611.3,1.59171914]
[1758243129021,4.22526695,4611.4,4611.3,0.5012]
[1758243129220,4.22526695,4611.4,4611.3,1.38851914]
[1758243129409,4.22526695,4611.4,4611.3,1.59171914]
[1758243131225,5.11258609,4611.4,4611.3,1.59171914]
[1758243131426,5.11258609,4611.4,4611.3,0.7044]
[1758243132418,5.11258609,4611.4,4611.1,0.3134]
[1758243132721,0.79846695,4611.3,4611.2,0.2918]
[1758243132923,1.68578609,4611.3,4611.2,0.2918]
[1758243133826,1.83649983,4611.3,4611.2,0.5012]
[1758243134024,1.83649983,4611.3,4611.2,0.2918]
[1758243136926,1.8362138,4611.3,4611.2,0.2918]
[1758243137127,1.8362138,4611.3,4611.2,0.5012]
[1758243140131,1.8362138,4611.3,4611.2,0.2918]
[1758243141429,2.87424668,4611.3,4611.1,0.0216]
[1758243141732,1.01718092,4611.2,4611.1,0.0216]
[1758243142227,2.0552138,4611.2,4610.5,0.41]
[1758243142426,3.2078,4610.8,4610.5,0.1182]
[1758243142626,1.03803288,4610.6,4610.5,0.41]
[1758243142832,1.8362138,4610.6,4610.5,0.41]
[1758243143535,1.8362138,4610.6,4610.5,0.6194]
[1758243145344,0.79818092,4610.6,4610.5,0.6194]
[1758243148740,0.56267071,4610.6,4610.5,0.6194]
[1758243148940,0.56267071,4610.6,4610.5,0.41]
[1758243148941,0.79892186,4610.6,4610.5,0.41]
[1758243149144,1.83695474,4610.6,4610.5,0.41]
[1758243149533,1.83695474,4610.6,4610.3,0.0216]
[1758243149737,1.01792186,4610.5,4610.3,0.0216]
[1758243150041,0.79892186,4610.4,4610.3,0.3256]
[1758243150540,1.01792186,4610.4,4610.3,0.6976]
[1758243150945,1.01792186,4610.4,4610.3,0.4974]
[1758243151946,1.01792186,4610.4,4610.3,1.73563288]
[1758243152848,0.219,4610.7,4610.6,0.6976]
[1758243153044,0.45514294,4610.7,4610.6,1.73563288]
[1758243155852,1.14804294,4610.7,4610.6,1.73563288]
[1758243156557,0.45514294,4610.7,4610.6,1.73563288]
[1758243158143,0.64634294,4610.7,4610.6,1.73563288]
[1758243158349,1.14804294,4610.7,4610.6,1.73563288]
[1758243159554,0.84684294,4610.7,4610.6,1.73563288]
[1758243160855,0.64634294,4610.7,4610.6,1.73563288]
[1758243161056,0.45514294,4610.7,4610.6,1.73563288]
[1758243161555,0.64634294,4610.7,4610.6,1.73563288]
[1758243162947,4.35584294,4610.7,4610.6,0.6976]
[1758243163352,4.35584294,4610.7,4610.4,0.0216]
[1758243163553,1.84573288,4610.5,4610.4,0.0216]
[1758243163751,2.08187582,4610.5,4610.4,0.0216]
[1758243163952,0.6929,4610.4,4610.3,1.3564]
[1758243164157,1.14804294,4610.4,4609.7,0.304]
[1758243164352,0.6929,4609.8,4609.7,0.4974]
[1758243164552,1.14804294,4609.8,4609.7,0.4974]
[1758243164856,1.7116,4609.8,4609.7,0.4974]
[1758243166560,1.7116,4609.8,4609.7,0.6976]
[1758243167861,1.7116,4609.8,4609.7,0.304]
[1758243168554,1.7116,4609.8,4609.7,0.4974]
[1758243169656,1.7116,4609.8,4609.7,0.304]
[1758243169862,0.3012,4609.7,4609.6,0.304]
[1758243170062,1.4926,4609.7,4609.6,0.4974]
[1758243172161,1.4926,4609.7,4609.6,0.6976]
[1758243172562,1.25645706,4609.7,4609.6,0.6976]
[1758243175856,0.7092,4609.5,4609.4,0.2984]
[1758243176056,0.7092,4609.4,4608.8,0.2984]
[1758243176257,0.4162,4608.2,4607.8,3.2078]
[1758243176456,1.96623288,4608.1,4608.0,0.1975]
[1758243176861,1.96623288,4608.1,4608.0,0.4959]
[1758243178867,1.96623288,4608.1,4608.0,0.2984]
[1758243179056,2.53058245,4608.1,4608.0,0.2984]
[1758243179261,1.96623288,4608.1,4608.0,0.2984]
[1758243179565,2.5302291,4608.1,4608.0,0.2984]
[1758243180367,2.5302291,4608.1,4607.8,0.0217]
[1758243180570,0.7082,4607.9,4607.8,0.0217]
[1758243180763,4.47998256,4607.9,4607.8,0.0217]
[1758243180962,4.16528256,4607.9,4607.3,2.1707]
[1758243181162,0.7082,4607.4,4607.3,2.4708]
[1758243181465,0.9272,4607.4,4607.3,2.6798]
[1758243183066,0.9272,4607.4,4607.3,2.8741]
[1758243183858,3.4054,4607.9,4607.8,0.4033]
[1758243184064,3.6244,4607.9,4607.8,0.7034]
[1758243184469,3.9391,4607.9,4607.8,0.7034]
[1758243184671,4.135,4607.9,4607.8,0.7034]
[1758243185773,5.17303288,4607.9,4607.6,0.0217]
[1758243186975,0.7082,4607.7,4607.6,0.0217]
[1758243187166,0.9272,4607.7,4607.6,0.0217]
[1758243188267,1.96523288,4607.7,4607.6,0.0217]
[1758243189073,0.3935,4607.4,4607.3,2.4708]
[1758243189269,0.3935,4607.4,4607.3,2.1707]
[1758243189270,1.96523288,4607.4,4607.3,2.1707]
[1758243189468,4.135,4607.4,4607.3,2.1707]
[1758243189670,5.17303288,4607.4,4607.3,2.1707]
[1758243190473,5.73803173,4607.4,4607.3,2.1707]
[1758243191668,9.97423993,4607.4,4606.3,0.3001]
[1758243191873,0.1976,4606.4,4606.3,0.7034]
[1758243192074,0.4166,4606.4,4606.3,0.7034]
[1758243193570,0.9272,4606.4,4606.3,0.7034]
[1758243193775,0.4166,4606.4,4606.3,0.7034]
[1758243194075,0.219,4606.4,4606.3,0.7034]
[1758243195366,0.9272,4606.4,4606.3,0.7034]
[1758243196980,0.6125,4606.4,4606.3,0.7034]
[1758243197977,0.9272,4606.4,4606.3,0.7034]
[1758243198874,0.9272,4606.4,4606.3,0.5091]
[1758243199078,0.9272,4606.4,4606.3,0.3001]
[1758243199273,0.9272,4606.4,4606.1,0.0217]
[1758243199274,1.49242937,4606.4,4606.1,0.0217]
[1758243199473,1.59709607,4606.2,4606.1,0.0217]
[1758243199876,1.28239607,4606.2,4605.9,0.3001]
[1758243200076,1.59709607,4606.0,4605.9,0.5091]
[1758243201379,2.16262172,4606.0,4605.9,0.5091]
[1758243202679,0.56552565,4606.0,4605.9,0.7034]
[1758243202880,0.56552565,4606.0,4605.9,1.59229607]
[1758243203383,0.76312565,4606.0,4605.9,1.59229607]
[1758243203884,0.76312565,4606.0,4605.9,0.7034]
[1758243204084,0.76312565,4606.0,4605.9,1.59229607]
[1758243204280,0.99989851,4606.0,4605.9,0.7034]
[1758243204478,1.51049851,4606.0,4605.9,0.7034]
[1758243204680,1.51049851,4606.0,4605.9,1.59229607]
[1758243205281,1.51049851,4606.0,4605.9,0.3001]
[1758243205587,1.51049851,4606.0,4605.7,0.0217]
[1758243205793,1.59709607,4605.8,4605.7,0.5308]
[1758243206081,2.61839458,4605.8,4605.7,0.3218]
[1758243206286,2.61981444,4605.8,4605.7,0.0217]
[1758243207579,2.30511444,4605.8,4605.3,2.90577753]
[1758243207884,1.59709607,4605.4,4605.3,2.90577753]
[1758243208075,2.61981444,4605.4,4605.3,2.90577753]
[1758243208580,2.61981444,4605.4,4605.3,3.11477753]
[1758243208782,2.61981444,4605.4,4605.3,0.94337753]
[1758243209183,2.61981444,4605.4,4605.3,1.15237753]
[1758243209989,2.61981444,4605.4,4605.3,0.94337753]
[1758243210184,2.61981444,4605.4,4605.3,0.43427753]
[1758243210386,2.61981444,4605.4,4605.3,0.95327753]
[1758243211490,2.61981444,4605.4,4605.3,1.16227753]
[1758243211788,2.30511444,4605.4,4605.3,1.16227753]
[1758243212291,2.61721444,4605.4,4605.3,1.16227753]
[1758243213589,2.61835767,4605.4,4605.3,1.16227753]
[1758243213790,2.61835767,4605.4,4605.3,0.95327753]
[1758243214789,2.61835767,4605.4,4605.3,1.16227753]
[1758243214992,1.2214616,4605.4,4605.3,1.16227753]
[1758243215488,1.7262616,4605.4,4605.3,1.16227753]
[1758243216888,1.4141616,4605.4,4605.3,1.16227753]
[1758243217190,1.7262616,4605.4,4605.3,0.95327753]
[1758243217585,1.7262616,4605.4,4605.3,0.43427753]
[1758243218391,1.7262616,4605.4,4605.3,0.75197753]
[1758243218591,2.61515767,4605.4,4605.3,1.16227753]
[1758243220188,2.61515767,4605.4,4605.3,0.43427753]
[1758243221091,2.39615767,4605.4,4605.3,0.43427753]
[1758243221291,2.61515767,4605.4,4605.3,0.43427753]
[1758243225694,3.50405374,4605.4,4605.3,0.43427753]
[1758243225890,3.50405374,4605.4,4605.1,0.0217]
[1758243226095,5.68199214,4605.2,4605.1,0.0217]
[1758243226294,6.70585374,4605.2,4605.1,0.0217]
[1758243226491,0.1916,4604.9,4604.8,2.1714]
[1758243226800,2.60915767,4604.9,4604.8,2.1714]
[1758243227398,2.60915767,4604.9,4604.8,2.4891]
[1758243227699,2.60915767,4604.9,4604.8,2.6904]
[1758243228589,2.04106893,4604.9,4604.8,2.1714]
[1758243228798,2.61023081,4604.9,4604.8,2.1714]
[1758243231800,1.40923474,4604.9,4604.8,2.8994]
[1758243231997,2.29813081,4604.9,4604.8,2.8994]
[1758243232394,2.61023081,4604.9,4604.8,2.8994]
[1758243233500,1.72133474,4604.9,4604.8,2.8994]
[1758243235497,0.80593474,4604.9,4604.8,2.8994]
[1758243235703,1.02493474,4604.9,4604.8,2.8994]
[1758243236798,1.02493474,4604.9,4604.8,7.29011]
[1758243237003,0.80593474,4604.9,4604.8,7.29011]
[1758243237205,1.02493474,4604.9,4604.8,7.29011]
[1758243238001,0.78816188,4604.9,4604.8,7.29011]